bitfinex-derivatives/quotes_BNBF0:USTF0_20250401
["timestamp","ask_amount","ask_price","bid_price","bid_amount"]
[1743522573444,1.47490564,615.7,613.78,1.02984965]
[1743522574348,1.47490564,615.69,613.78,1.02984965]
[1743522574746,0.736,615.72,613.78,1.02984965]
[1743522575443,1.47427699,615.71,613.78,1.02984965]
[1743522576348,1.47427699,615.7,613.78,1.02984965]
[1743522576944,0.736,615.72,613.78,1.02984965]
[1743522591265,1.61572886,616.34,613.78,1.02984965]
[1743522591466,0.32450674,616.32,613.78,1.02984965]
[1743522591667,0.28281876,616.01,613.78,1.02984965]
[1743522591868,4.21390648,616.0,613.78,1.02984965]
[1743522592167,4.21390648,615.99,613.78,1.02984965]
[1743522592363,4.21390648,615.98,613.78,1.02984965]
[1743522592562,4.21390648,615.97,613.78,1.02984965]
[1743522592762,4.21390648,615.96,613.78,1.02984965]
[1743522592962,1.62073326,615.95,613.78,1.02984965]
[1743522593167,1.62073326,615.94,613.78,1.02984965]
[1743522593364,1.62073326,615.93,613.78,1.02984965]
[1743522593670,1.62073326,615.92,613.78,1.02984965]
[1743522593969,5.45704185,615.91,613.78,1.02984965]
[1743522594171,1.62073326,615.9,613.78,1.02984965]
[1743522594470,1.62073326,615.89,613.78,1.02984965]
[1743522594670,1.62073326,615.88,613.78,1.02984965]
[1743522594870,1.62073326,615.87,613.78,1.02984965]
[1743522595063,1.62073326,615.86,613.78,1.02984965]
[1743522595263,1.62073326,615.85,613.78,1.02984965]
[1743522595468,1.62073326,615.84,613.78,1.02984965]
[1743522595668,1.62073326,615.83,613.78,1.02984965]
[1743522595868,1.62073326,615.82,613.78,1.02984965]
[1743522596065,1.62073326,615.81,613.78,1.02984965]
[1743522596266,1.62073326,615.8,613.78,1.02984965]
[1743522596466,1.62073326,615.79,613.78,1.02984965]
[1743522596666,1.62073326,615.78,613.78,1.02984965]
[1743522596972,1.62073326,615.77,613.78,1.02984965]
[1743522597171,1.62073326,615.76,613.78,1.02984965]
[1743522597374,1.4755033,615.76,613.78,1.02984965]
[1743522598172,0.789,615.86,613.78,1.02984965]
[1743522598371,1.62090097,615.85,613.78,1.02984965]
[1743522598566,1.62090097,615.84,613.78,1.02984965]
[1743522598766,1.62090097,615.83,613.78,1.02984965]
[1743522598964,1.62090097,615.82,613.78,1.02984965]
[1743522599169,1.62090097,615.81,613.78,1.02984965]
[1743522599371,1.62090097,615.8,613.78,1.02984965]
[1743522599567,1.62090097,615.79,613.78,1.02984965]
[1743522599767,1.62090097,615.78,613.78,1.02984965]
[1743522599968,1.62090097,615.77,613.78,1.02984965]
[1743522600168,1.62090097,615.76,613.78,1.02984965]
[1743522600372,1.47587823,615.78,613.78,1.02984965]
[1743522600873,0.789,615.86,613.78,1.02984965]
[1743522601073,1.62083148,615.85,613.78,1.02984965]
[1743522601273,3.09676111,615.84,613.78,1.02984965]
[1743522601468,1.62083148,615.83,613.78,1.02984965]
[1743522601667,1.47592963,615.84,613.78,1.02984965]
[1743522601668,1.62083148,615.82,613.78,1.02984965]
[1743522601872,1.47592963,615.84,613.78,1.02984965]
[1743522602072,1.62079644,615.83,613.78,1.02984965]
[1743522602276,1.62079644,615.82,613.78,1.02984965]
[1743522602470,0.789,615.86,613.78,1.02984965]
[1743522602775,3.09684644,615.85,613.78,1.02984965]
[1743522602975,1.62077818,615.84,613.78,1.02984965]
[1743522603176,1.62077818,615.83,613.78,1.02984965]
[1743522603373,1.62077818,615.82,613.78,1.02984965]
[1743522603675,1.62083198,615.81,613.78,1.02984965]
[1743522603875,1.47606826,615.83,613.78,1.02984965]
[1743522604068,1.62082113,615.82,613.78,1.02984965]
[1743522604273,1.62082113,615.81,613.78,1.02984965]
[1743522604475,1.62081983,615.8,613.78,1.02984965]
[1743522604771,0.789,615.86,613.78,1.02984965]
[1743522604971,1.62083266,615.85,613.78,1.02984965]
[1743522605169,1.62083266,615.84,613.78,1.02984965]
[1743522605374,1.62083266,615.83,613.78,1.02984965]
[1743522605572,1.62083266,615.82,613.78,1.02984965]
[1743522605771,1.47631397,615.84,613.78,1.02984965]
[1743522605978,1.62077441,615.83,613.78,1.02984965]
[1743522606177,1.62077441,615.82,613.78,1.02984965]
[1743522606377,1.47639739,615.82,613.78,1.02984965]
[1743522606980,0.789,615.86,613.78,1.02984965]
[1743522607173,1.62074848,615.85,613.78,1.02984965]
[1743522607377,1.62074848,615.84,613.78,1.02984965]
[1743522607579,0.789,615.86,613.78,1.02984965]
[1743522607580,3.09720458,615.83,613.78,1.02984965]
[1743522607780,1.4764561,615.83,613.78,1.02984965]
[1743522608173,0.789,615.86,613.78,1.02984965]
[1743522608476,1.62072966,615.85,613.78,1.02984965]
[1743522608779,0.789,615.86,613.78,1.02984965]
[1743522609183,3.09719623,615.85,613.78,1.02984965]
[1743522609384,1.47650197,615.85,613.78,1.02984965]
[1743522609579,0.789,615.86,613.78,1.02984965]
[1743522609785,1.62071138,615.85,613.78,1.02984965]
[1743522610085,1.62071037,615.84,613.78,1.02984965]
[1743522610283,0.789,615.86,613.78,1.02984965]
[1743522610479,1.62073352,615.85,613.78,1.02984965]
[1743522610683,1.62073352,615.84,613.78,1.02984965]
[1743522610981,0.789,615.86,613.78,1.02984965]
[1743522611186,1.62073499,615.85,613.78,1.02984965]
[1743522611381,0.789,615.86,613.78,1.02984965]
[1743522611579,1.62070495,615.85,613.78,1.02984965]
[1743522611782,1.62070495,615.84,613.78,1.02984965]
[1743522611985,1.62074912,615.83,613.78,1.02984965]
[1743522612185,1.47669942,615.84,613.78,1.02984965]
[1743522612686,0.789,615.86,613.78,1.02984965]
[1743522612887,1.62071909,615.85,613.78,1.02984965]
[1743522613088,0.789,615.86,613.78,1.02984965]
[1743522613288,1.62071643,615.85,613.78,1.02984965]
[1743522613488,0.789,615.86,613.78,1.02984965]
[1743522613686,1.62071205,615.85,613.78,1.02984965]
[1743522613882,0.789,615.86,613.78,1.02984965]
[1743522614085,1.47671658,615.85,613.78,1.02984965]
[1743522614281,0.789,615.86,613.78,1.02984965]
[1743522614685,1.62070795,615.85,613.78,1.02984965]
[1743522614884,1.62070954,615.84,613.78,1.02984965]
[1743522615188,0.789,615.86,613.78,1.02984965]
[1743522615391,1.62073977,615.85,613.78,1.02984965]
[1743522615585,0.789,615.86,613.78,1.02984965]
[1743522615785,1.62071105,615.85,613.78,1.02984965]
[1743522615985,0.789,615.86,613.78,1.02984965]
[1743522616186,1.62070296,615.85,613.78,1.02984965]
[1743522616386,0.789,615.86,613.78,1.02984965]
[1743522617991,1.6206796,615.85,613.78,1.02984965]
[1743522618187,0.789,615.86,613.78,1.02984965]
[1743522618386,1.62070602,615.85,613.78,1.02984965]
[1743522618692,0.789,615.86,613.78,1.02984965]
[1743522623198,0.28280842,615.97,613.78,1.02984965]
[1743522623394,4.21355747,615.96,613.78,1.02984965]
[1743522623598,4.21355747,615.95,613.78,1.02984965]
[1743522623797,1.62059903,615.94,613.78,1.02984965]
[1743522623992,1.62059903,615.93,613.78,1.02984965]
[1743522624196,1.62059903,615.92,613.78,1.02984965]
[1743522624393,1.62059903,615.91,613.78,1.02984965]
[1743522624595,1.62059903,615.9,613.78,1.02984965]
[1743522624798,1.62059903,615.89,613.78,1.02984965]
[1743522625000,1.47651782,615.9,613.78,1.02984965]
[1743522625201,0.28280842,615.97,613.78,1.02984965]
[1743522625695,1.62058364,615.96,613.78,1.02984965]
[1743522625901,0.28280842,615.97,613.78,1.02984965]
[1743522626498,1.6157832,616.23,613.78,1.02984965]
[1743522626700,0.32455941,616.22,613.78,1.02984965]
[1743522626896,1.14355941,616.22,613.78,1.02984965]
[1743522627099,1.62053355,615.96,613.78,1.02984965]
[1743522627305,4.86170126,616.21,613.78,1.02984965]
[1743522627705,0.28278773,616.01,613.78,1.02984965]
[1743522627906,0.64823354,616.2,613.78,1.02984965]
[1743522628101,1.62060442,616.19,613.78,1.02984965]
[1743522628298,5.18639372,616.18,613.78,1.02984965]
[1743522628503,5.18639899,616.17,613.78,1.02984965]
[1743522628701,9.6735694,616.16,613.78,1.02984965]
[1743522628906,5.18640953,616.15,613.78,1.02984965]
[1743522629106,5.1864148,616.14,613.78,1.02984965]
[1743522629402,9.34897839,616.13,613.78,1.02984965]
[1743522629701,4.86181325,616.12,613.78,1.02984965]
[1743522629898,4.86189945,616.11,613.78,1.02984965]
[1743522630098,4.86189945,616.1,613.78,1.02984965]
[1743522630304,4.86189945,616.09,613.78,1.02984965]
[1743522630504,4.86189945,616.08,613.78,1.02984965]
[1743522630701,4.86189945,616.07,613.78,1.02984965]
[1743522630903,4.21364619,616.06,613.78,1.02984965]
[1743522631105,4.21364619,616.05,613.78,1.02984965]
[1743522631307,4.21364619,616.04,613.78,1.02984965]
[1743522631504,8.05256241,616.03,613.78,1.02984965]
[1743522631707,4.21364619,616.02,613.78,1.02984965]
[1743522631907,4.21364619,616.01,613.78,1.02984965]
[1743522632109,4.21364619,616.0,613.78,1.02984965]
[1743522632301,4.21364619,615.99,613.78,1.02984965]
[1743522632502,4.21364619,615.98,613.78,1.02984965]
[1743522632703,8.05256241,615.97,613.78,1.02984965]
[1743522632908,4.21364619,615.96,613.78,1.02984965]
[1743522633108,1.62063315,615.95,613.78,1.02984965]
[1743522633310,1.62063315,615.94,613.78,1.02984965]
[1743522633604,1.62063315,615.93,613.78,1.02984965]
[1743522633807,1.62058072,615.92,613.78,1.02984965]
[1743522634003,1.62058072,615.91,613.78,1.02984965]
[1743522634203,1.47650624,615.91,613.78,1.02984965]
[1743522634903,0.28278544,616.02,613.78,1.02984965]
[1743522635106,4.213402,616.01,613.78,1.02984965]
[1743522635306,4.213402,616.0,613.78,1.02984965]
[1743522635505,4.213402,615.99,613.78,1.02984965]
[1743522635809,4.21355429,615.98,613.78,1.02984965]
[1743522636110,8.0552423,615.97,613.78,1.02984965]
[1743522636307,4.21355429,615.96,613.78,1.02984965]
[1743522636511,4.21355429,615.95,613.78,1.02984965]
[1743522636712,1.6205978,615.94,613.78,1.02984965]
[1743522636912,1.6205978,615.93,613.78,1.02984965]
[1743522637214,1.6205978,615.92,613.78,1.02984965]
[1743522637414,1.6205978,615.91,613.78,1.02984965]
[1743522637714,1.47757231,615.92,613.78,1.02984965]
[1743522638208,0.2827682,616.07,613.78,1.02984965]
[1743522638414,4.86166035,616.06,613.78,1.02984965]
[1743522638614,4.21343903,616.05,613.78,1.02984965]
[1743522638809,4.21343903,616.04,613.78,1.02984965]
[1743522639008,4.21343903,616.03,613.78,1.02984965]
[1743522639212,4.21343903,616.02,613.78,1.02984965]
[1743522639413,4.21343903,616.01,613.78,1.02984965]
[1743522639613,4.21343903,616.0,613.78,1.02984965]
[1743522639815,4.21343903,615.99,613.78,1.02984965]
[1743522640013,4.21343903,615.98,613.78,1.02984965]
[1743522640314,1.62055347,615.97,613.78,1.02984965]
[1743522640609,1.62055347,615.96,613.78,1.02984965]
[1743522640814,1.62055347,615.95,613.78,1.02984965]
[1743522641016,1.62055347,615.94,613.78,1.02984965]
[1743522641216,1.62055347,615.93,613.78,1.02984965]
[1743522641415,3.84241664,615.96,613.78,1.02984965]
[1743522641612,1.62049578,615.95,613.78,1.02984965]
[1743522641812,1.62049578,615.94,613.78,1.02984965]
[1743522642019,1.62049578,615.93,613.78,1.02984965]
[1743522642215,0.32460155,616.14,613.78,1.02984965]
[1743522642420,1.477543,615.92,613.78,1.02984965]
[1743522642816,0.743,615.91,613.78,1.02984965]
[1743522656925,0.32460155,616.14,613.78,1.02984965]
[1743522657126,4.21275013,616.13,613.78,1.02984965]
[1743522657326,0.32460155,616.14,613.78,1.02984965]
[1743522657327,4.21275013,616.12,613.78,1.02984965]
[1743522657525,0.32460155,616.14,613.78,1.02984965]
[1743522657526,4.21271092,616.11,613.78,1.02984965]
[1743522657722,1.62028851,616.1,613.78,1.02984965]
[1743522657925,1.62028851,616.09,613.78,1.02984965]
[1743522658126,1.62028851,616.08,613.78,1.02984965]
[1743522658421,1.62028851,616.07,613.78,1.02984965]
[1743522658621,3.83728946,616.09,613.78,1.02984965]
[1743522658622,1.62028851,616.06,613.78,1.02984965]
[1743522658826,1.62028851,616.05,613.78,1.02984965]
[1743522659023,1.47588056,616.06,613.78,1.02984965]
[1743522659024,1.62028851,616.04,613.78,1.02984965]
[1743522659222,1.47588056,616.06,613.78,1.02984965]
[1743522659429,1.6202197,616.05,613.78,1.02984965]
[1743522659622,1.6202197,616.04,613.78,1.02984965]
[1743522659827,1.62021869,616.03,613.78,1.02984965]
[1743522660031,1.62029792,616.02,613.78,1.02984965]
[1743522660223,0.646,616.04,613.78,1.02984965]
[1743522660423,1.475909,616.01,613.78,1.02984965]
[1743522661126,0.646,616.04,613.78,1.02984965]
[1743522661430,1.6202353,616.03,613.78,1.02984965]
[1743522661626,0.646,616.04,613.78,1.02984965]
[1743522661831,1.62020912,616.03,613.78,1.02984965]
[1743522662029,1.47582629,616.03,613.78,1.02984965]
[1743522662430,0.646,616.04,613.78,1.02984965]
[1743522662630,1.620219,616.03,613.78,1.02984965]
[1743522662931,0.646,616.04,613.78,1.02984965]
[1743522663130,1.62021862,616.03,613.78,1.02984965]
[1743522663325,0.646,616.04,613.78,1.02984965]
[1743522663528,1.62021822,616.03,613.78,1.02984965]
[1743522663726,0.646,616.04,613.78,1.02984965]
[1743522664126,1.62025789,616.03,613.78,1.02984965]
[1743522664431,1.4758434,616.03,613.78,1.02984965]
[1743522665023,0.646,616.04,613.78,1.02984965]
[1743522666430,1.62021155,616.03,613.78,1.02984965]
[1743522666623,0.646,616.04,613.78,1.02984965]
[1743522666825,1.62022129,616.03,613.78,1.02984965]
[1743522667026,0.646,616.04,613.78,1.02984965]
[1743522667430,1.47579618,616.03,613.78,1.02984965]
[1743522667828,0.646,616.04,613.78,1.02984965]
[1743522668030,1.62021177,616.03,613.78,1.02984965]
[1743522668230,0.646,616.04,613.78,1.02984965]
[1743522669434,1.6202205,616.03,613.78,1.02984965]
[1743522669635,0.646,616.04,613.78,1.02984965]
[1743522669830,1.62022246,616.03,613.78,1.02984965]
[1743522670033,0.646,616.04,613.78,1.02984965]
[1743522672036,1.62021136,616.03,613.78,1.02984965]
[1743522672235,0.646,616.04,613.78,1.02984965]
[1743522672430,1.6202107,616.03,613.78,1.02984965]
[1743522672630,0.646,616.04,613.78,1.02984965]
[1743522673037,1.62021257,616.03,613.78,1.02984965]
[1743522673237,1.47593681,616.03,613.78,1.02984965]
[1743522673731,1.62022253,616.02,613.78,1.02984965]
[1743522673933,1.62022253,616.01,613.78,1.02984965]
[1743522674131,1.62022253,616.0,613.78,1.02984965]
[1743522674333,1.62022253,615.99,613.78,1.02984965]
[1743522674534,1.47608031,616.01,613.78,1.02984965]
[1743522674735,1.62034128,616.0,613.78,1.02984965]
[1743522674936,1.47608031,615.98,613.78,1.02984965]
[1743522675435,0.646,616.04,613.78,1.02984965]
[1743522675636,1.62034328,616.03,613.78,1.02984965]
[1743522675838,3.09665128,616.02,613.78,1.02984965]
[1743522676039,1.62034328,616.01,613.78,1.02984965]
[1743522676236,1.62034328,616.0,613.78,1.02984965]
[1743522676438,1.62034328,615.99,613.78,1.02984965]
[1743522676732,1.476308,616.01,613.78,1.02984965]
[1743522676936,1.62033011,616.0,613.78,1.02984965]
[1743522677136,0.646,616.04,613.78,1.02984965]
[1743522677338,1.62032145,616.03,613.78,1.02984965]
[1743522677537,1.62032145,616.02,613.78,1.02984965]
[1743522677840,1.62032145,616.01,613.78,1.02984965]
[1743522678035,1.62032145,616.0,613.78,1.02984965]
[1743522678232,1.62032145,615.99,613.78,1.02984965]
[1743522678435,1.62032145,615.98,613.78,1.02984965]
[1743522678632,1.4765462,615.98,613.78,1.02984965]
[1743522679438,0.646,616.04,613.78,1.02984965]
[1743522679637,1.62037339,616.03,613.78,1.02984965]
[1743522679834,1.62037339,616.02,613.78,1.02984965]
[1743522680139,5.46007523,616.01,613.78,1.02984965]
[1743522680346,1.62037339,616.0,613.78,1.02984965]
[1743522680539,1.62037339,615.99,613.78,1.02984965]
[1743522680840,1.62037339,615.98,613.78,1.02984965]
[1743522681040,1.62037339,615.97,613.78,1.02984965]
[1743522681340,1.62037339,615.96,613.78,1.02984965]
[1743522681639,1.62042343,615.95,613.78,1.02984965]
[1743522681838,1.4768084,615.95,613.78,1.02984965]
[1743522682338,0.646,616.04,613.78,1.02984965]
[1743522682538,4.21307139,616.03,613.78,1.02984965]
[1743522682740,1.62041207,616.02,613.78,1.02984965]
[1743522682939,5.46069915,616.01,613.78,1.02984965]
[1743522683132,1.62041207,616.0,613.78,1.02984965]
[1743522683336,1.62041207,615.99,613.78,1.02984965]
[1743522683537,1.62041207,615.98,613.78,1.02984965]
[1743522683737,1.62041207,615.97,613.78,1.02984965]
[1743522683937,3.84028708,615.99,613.78,1.02984965]
[1743522683938,1.62041207,615.96,613.78,1.02984965]
[1743522684136,1.47703349,615.96,613.78,1.02984965]
[1743522685040,0.28276246,616.1,613.78,1.02984965]
[1743522685242,4.21309926,616.09,613.78,1.02984965]
[1743522685441,4.21309926,616.08,613.78,1.02984965]
[1743522685741,8.05405623,616.07,613.78,1.02984965]
[1743522685941,4.21309926,616.06,613.78,1.02984965]
[1743522686142,4.21309926,616.05,613.78,1.02984965]
[1743522686340,4.21309926,616.04,613.78,1.02984965]
[1743522686540,1.62042279,616.03,613.78,1.02984965]
[1743522686741,5.46137976,616.02,613.78,1.02984965]
[1743522686936,1.62042279,616.01,613.78,1.02984965]
[1743522687141,1.62042279,616.0,613.78,1.02984965]
[1743522687342,1.62042279,615.99,613.78,1.02984965]
[1743522687542,1.62042279,615.98,613.78,1.02984965]
[1743522687743,1.47729114,616.0,613.78,1.02984965]
[1743522687942,1.6203557,615.99,613.78,1.02984965]
[1743522688243,3.09764684,615.98,613.78,1.02984965]
[1743522688644,1.47729114,615.98,613.78,1.02984965]
[1743522688945,1.6206607,615.97,613.78,1.02984965]
[1743522689146,4.21371783,615.96,613.78,1.02984965]
[1743522689542,4.21387358,615.95,613.78,1.02984965]
[1743522689741,4.21387358,615.94,613.78,1.02984965]
[1743522689946,4.2139459,615.93,613.78,1.02984965]
[1743522690139,4.2139459,615.92,613.78,1.02984965]
[1743522690338,4.2139459,615.91,613.78,1.02984965]
[1743522690542,1.62074842,615.9,613.78,1.02984965]
[1743522690742,1.62074842,615.89,613.78,1.02984965]
[1743522690938,1.62074842,615.88,613.78,1.02984965]
[1743522691246,1.62074842,615.87,613.78,1.02984965]
[1743522691445,1.62074842,615.86,613.78,1.02984965]
[1743522691645,1.62074842,615.85,613.78,1.02984965]
[1743522691947,1.47729114,615.86,613.78,1.02984965]
[1743522692147,1.62070983,615.85,613.78,1.02984965]
[1743522692339,1.47729114,615.86,613.78,1.02984965]
[1743522692537,3.09800027,615.85,613.78,1.02984965]
[1743522692744,1.47729114,615.85,613.78,1.02984965]
[1743522692939,0.89,616.01,613.78,1.02984965]
[1743522693238,4.21339205,616.0,613.78,1.02984965]
[1743522693437,4.21339205,615.99,613.78,1.02984965]
[1743522693642,4.21339205,615.98,613.78,1.02984965]
[1743522693845,3.84049178,616.0,613.78,1.02984965]
[1743522693846,1.6205354,615.97,613.78,1.02984965]
[1743522694046,1.6205354,615.96,613.78,1.02984965]
[1743522694247,1.6205354,615.95,613.78,1.02984965]
[1743522694443,1.6205354,615.94,613.78,1.02984965]
[1743522694644,1.6205354,615.93,613.78,1.02984965]
[1743522694844,1.6205354,615.92,613.78,1.02984965]
[1743522695041,1.6205354,615.91,613.78,1.02984965]
[1743522695241,1.47711222,615.91,613.78,1.02984965]
[1743522696145,0.89,616.01,613.78,1.02984965]
[1743522696344,4.21335102,616.0,613.78,1.02984965]
[1743522696542,4.21335102,615.99,613.78,1.02984965]
[1743522696742,4.21335102,615.98,613.78,1.02984965]
[1743522696945,4.21335102,615.97,613.78,1.02984965]
[1743522697141,1.62051962,615.96,613.78,1.02984965]
[1743522697345,1.62051962,615.95,613.78,1.02984965]
[1743522697545,1.62051962,615.94,613.78,1.02984965]
[1743522697845,1.62051962,615.93,613.78,1.02984965]
[1743522698044,1.62051962,615.92,613.78,1.02984965]
[1743522698245,1.62051962,615.91,613.78,1.02984965]
[1743522698446,1.62051962,615.9,613.78,1.02984965]
[1743522698645,3.84063873,615.93,613.78,1.02984965]
[1743522698848,1.47716874,615.9,613.78,1.02984965]
[1743522699343,0.89,616.01,613.78,1.02984965]
[1743522699548,4.21349936,616.0,613.78,1.02984965]
[1743522699848,8.05393041,615.99,613.78,1.02984965]
[1743522700048,4.21349936,615.98,613.78,1.02984965]
[1743522700248,4.21349936,615.97,613.78,1.02984965]
[1743522700449,1.62057668,615.96,613.78,1.02984965]
[1743522700645,1.62057668,615.95,613.78,1.02984965]
[1743522700844,1.62057668,615.94,613.78,1.02984965]
[1743522701043,1.62057668,615.93,613.78,1.02984965]
[1743522701249,1.47708886,615.93,613.78,1.02984965]
[1743522701948,0.89,616.01,613.78,1.02984965]
[1743522702148,1.62050543,616.0,613.78,1.02984965]
[1743522702344,1.62050543,615.99,613.78,1.02984965]
[1743522702549,1.62050543,615.98,613.78,1.02984965]
[1743522702745,1.62050543,615.97,613.78,1.02984965]
[1743522702949,1.62050543,615.96,613.78,1.02984965]
[1743522703145,1.62050543,615.95,613.78,1.02984965]
[1743522703450,0.89,616.01,613.78,1.02984965]
[1743522703750,1.62041323,616.0,613.78,1.02984965]
[1743522703946,1.62041323,615.99,613.78,1.02984965]
[1743522704153,1.62041323,615.98,613.78,1.02984965]
[1743522704451,1.62041323,615.97,613.78,1.02984965]
[1743522704645,3.09740225,615.96,613.78,1.02984965]
[1743522704848,1.62041323,615.95,613.78,1.02984965]
[1743522705045,1.62041323,615.94,613.78,1.02984965]
[1743522705250,1.62041323,615.93,613.78,1.02984965]
[1743522705453,1.62041323,615.92,613.78,1.02984965]
[1743522705753,1.62041323,615.91,613.78,1.02984965]
[1743522705953,1.62041323,615.9,613.78,1.02984965]
[1743522706252,3.09740225,615.89,613.78,1.02984965]
[1743522706447,1.62041323,615.88,613.78,1.02984965]
[1743522706647,1.62041323,615.87,613.78,1.02984965]
[1743522706955,1.62065329,615.86,613.78,1.02984965]
[1743522707252,1.62065329,615.85,613.78,1.02984965]
[1743522707450,3.09734765,615.84,613.78,1.02984965]
[1743522707647,4.2140908,615.83,613.78,1.02984965]
[1743522707857,4.21416604,615.82,613.78,1.02984965]
[1743522708049,4.21416604,615.81,613.78,1.02984965]
[1743522708248,4.21416604,615.8,613.78,1.02984965]
[1743522708453,1.62065329,615.79,613.78,1.02984965]
[1743522708653,1.62065329,615.78,613.78,1.02984965]
[1743522708852,1.62065329,615.77,613.78,1.02984965]
[1743522709148,1.62065329,615.76,613.78,1.02984965]
[1743522709352,1.62065329,615.75,613.78,1.02984965]
[1743522709546,1.62065329,615.74,613.78,1.02984965]
[1743522709750,1.47669436,615.74,613.78,1.02984965]
[1743522709950,1.62110991,615.73,613.78,1.02984965]
[1743522710148,1.62110991,615.72,613.78,1.02984965]
[1743522710347,1.47669436,615.72,613.78,1.02984965]
[1743522710546,1.62105893,615.71,613.78,1.02984965]
[1743522710745,1.47669436,615.72,613.78,1.02984965]
[1743522710953,1.47669436,615.7,613.78,1.02984965]
[1743522711454,5.45853273,615.69,613.78,1.02984965]
[1743522711649,1.62118932,615.68,613.78,1.02984965]
[1743522711849,1.62118932,615.67,613.78,1.02984965]
[1743522712050,1.62118932,615.66,613.78,1.02984965]
[1743522712252,1.62118932,615.65,613.78,1.02984965]
[1743522712448,1.47669436,615.67,613.78,1.02984965]
[1743522712648,1.47669436,615.64,613.78,1.02984965]
[1743522713355,1.47669436,615.63,613.78,1.02984965]
[1743522713952,0.95,615.66,613.78,1.02984965]
[1743522724565,1.47164001,615.65,613.78,1.02984965]
[1743522725173,0.95,615.66,613.78,1.02984965]
[1743522732972,1.47173189,615.65,613.78,1.02984965]
[1743522733569,1.47173189,615.64,613.78,1.02984965]
[1743522734173,0.95,615.66,613.78,1.02984965]
[1743522734878,1.47163098,615.65,613.78,1.02984965]
[1743522735577,0.95,615.66,613.78,1.02984965]
[1743522738874,1.47181764,615.65,613.78,1.02984965]
[1743522739479,1.47181764,615.64,613.78,1.02984965]
[1743522739780,0.95,615.66,613.78,1.02984965]
[1743522740578,1.62143697,615.65,613.78,1.02984965]
[1743522740775,1.61100699,616.07,613.78,1.02984965]
[1743522740973,1.93565596,616.05,613.78,1.02984965]
[1743522741176,1.47190744,615.65,613.78,1.02984965]
[1743522741376,1.47190744,615.64,613.78,1.02984965]
[1743522742283,1.47190744,615.63,613.78,1.02984965]
[1743522742878,0.28289693,615.69,613.78,1.02984965]
[1743522743086,1.62139998,615.68,613.78,1.02984965]
[1743522743386,3.09318405,615.67,613.78,1.02984965]
[1743522743581,1.47178407,615.67,613.78,1.02984965]
[1743522743880,0.773,615.66,613.78,1.02984965]
[1743522745185,3.09331284,615.65,613.78,1.02984965]
[1743522745385,1.62133968,615.64,613.78,1.02984965]
[1743522745581,1.62133968,615.63,613.78,1.02984965]
[1743522745886,3.09355233,615.62,613.78,1.02984965]
[1743522746081,1.62157917,615.61,613.78,1.02984965]
[1743522746280,1.62157917,615.6,613.78,1.02984965]
[1743522746582,1.62157917,615.59,613.78,1.02984965]
[1743522746886,1.62157917,615.58,613.78,1.02984965]
[1743522747086,1.47197316,615.59,613.78,1.02984965]
[1743522747286,1.47197316,615.57,613.78,1.02984965]
[1743522748087,1.47197316,615.56,613.78,1.02984965]
[1743522748479,1.47197316,615.55,613.78,1.02984965]
[1743522749080,0.773,615.66,613.78,1.02984965]
[1743522749282,1.62157656,615.65,613.78,1.02984965]
[1743522749485,1.62157656,615.64,613.78,1.02984965]
[1743522749686,1.62157656,615.63,613.78,1.02984965]
[1743522749886,1.62157656,615.62,613.78,1.02984965]
[1743522750181,1.62157656,615.61,613.78,1.02984965]
[1743522750383,1.62164687,615.6,613.78,1.02984965]
[1743522750688,0.28291303,615.64,613.78,1.02984965]
[1743522751283,1.62169265,615.63,613.78,1.02984965]
[1743522751990,1.62175895,615.62,613.78,1.02984965]
[1743522752791,1.62184874,615.61,613.78,1.02984965]
[1743522753092,4.21680673,615.61,613.78,1.02984965]
[1743522753290,4.21680673,615.6,613.78,1.02984965]
[1743522753486,4.21688051,615.59,613.78,1.02984965]
[1743522753690,4.21688051,615.58,613.78,1.02984965]
[1743522753987,4.21687907,615.57,613.78,1.02984965]
[1743522754189,5.44880415,615.56,613.78,1.02984965]
[1743522754389,4.21699555,615.55,613.78,1.02984965]
[1743522754593,1.62187712,615.54,613.78,1.02984965]
[1743522754794,1.62187712,615.53,613.78,1.02984965]
[1743522754993,1.62187712,615.52,613.78,1.02984965]
[1743522755197,1.62187712,615.51,613.78,1.02984965]
[1743522755388,1.62187712,615.5,613.78,1.02984965]
[1743522755590,1.47197257,615.5,613.78,1.02984965]
[1743522756093,3.0938648,615.49,613.78,1.02984965]
[1743522756294,1.47197257,615.49,613.78,1.02984965]
[1743522756995,1.47197257,615.48,613.78,1.02984965]
[1743522757593,1.47197257,615.47,613.78,1.02984965]
[1743522757993,0.28294523,615.56,613.78,1.02984965]
[1743522758191,1.62183399,615.55,613.78,1.02984965]
[1743522758397,1.62183399,615.54,613.78,1.02984965]
[1743522758595,1.62183399,615.53,613.78,1.02984965]
[1743522758797,1.47109722,615.54,613.78,1.02984965]
[1743522759097,1.47109722,615.52,613.78,1.02984965]
[1743522759297,1.62184525,615.51,613.78,1.02984965]
[1743522759498,1.62184525,615.5,613.78,1.02984965]
[1743522759691,1.62187159,615.49,613.78,1.02984965]
[1743522759895,1.47109722,615.5,613.78,1.02984965]